[Event "ESP-chT Div I 2018"]
[Site "Linares"]
[Date "2018.08.08"]
[Round "3"]
[White "Moreno Ruiz, Javier"]
[Black "Gonzalez de la Torre, Santiago"]
[Result "1/2-1/2"]
[ECO "B22"]
[WhiteElo "2450"]
[BlackElo "2434"]
[Annotator "ChessBase"]
[PlyCount "101"]
[EventDate "2018.08.06"]
[EventType "team-tourn"]
[EventCountry "ESP"]
[SourceTitle "playchess.com"]
[Source "ChessBase"]
[SourceQuality "1"]
[TimeControl "40/5400+30:1800+30"]

1. e4 {[%emt 0:00:00]} c5 {[%emt 0:03:45]} 2. c3 {[%emt 0:00:00]} Nf6 {[%emt 0:00:23]} 3. e5 {[%emt 0:00:00]} Nd5 {[%emt 0:00:04]} 4. d4 {[%emt 0:00:12]} cxd4 {[%emt 0:00:07]} 5. Nf3 {[%emt 0:00:10]} Nc6 {[%emt 0:01:36]} 6. cxd4 {[%emt 0:00:26]} d6 {[%emt 0:00:19]} 7. Bc4 {[%emt 0:00:09]} Nb6 {[%emt 0:03:39]} 8. Bb5 {[%emt 0:00:59]} dxe5 {[%emt 0:00:46]} 9. Nxe5 {[%emt 0:00:37]} Bd7 {[%emt 0:00:06]} 10. Nxd7 {[%emt 0:00:22]} Qxd7 {[%emt 0:00:13]} 11. O-O {[%emt 0:00:37]} Rd8 {[%emt 0:01:15]} 12. Nc3 {[%emt 0:00:56]} e6 {[%emt 0:01:56]} 13. a4 {[%emt 0:00:59]} Be7 {[%emt 0:15:45]} 14. a5 {[%emt 0:04:41]} Nd5 {[%emt 0:00:24]} 15. a6 {[%emt 0:00:15]} O-O {[%emt 0:00:32]} 16. axb7 {[%emt 0:19:11]} Qxb7 {[%emt 0:00:22]} 17. Qa4 {[%emt 0:00:57]} Nxd4 {[%emt 0:04:56]} 18. Qxd4 {[%emt 0:09:06]} Nxc3 {[%emt 0:00:45]} 19. Qxc3 {[%emt 0:00:08]} Qxb5 {[%emt 0:00:49]} 20. Rxa7 {[%emt 0:01:18]} Bc5 {[%emt 0:10:51]} 21. Ra1 {[%emt 0:15:45]} Qe2 {[%emt 0:05:47]} 22. Be3 {[%emt 0:10:20]} Bxe3 {[%emt 0:00:40]} 23. Qxe3 {[%emt 0:00:02]} Qxb2 {[%emt 0:00:25]} 24. g3 {[%emt 0:00:15]} Rd5 {[%emt 0:06:12]} 25. Rab1 {[%emt 0:01:09]} Qf6 {[%emt 0:00:33]} 26. Rfd1 {[%emt 0:00:36]} Re5 {[%emt 0:00:29]} 27. Qd3 {[%emt 0:00:56]} Rf5 {[%emt 0:03:41]} 28. Qe2 {[%emt 0:01:02]} g5 {[%emt 0:01:45]} 29. Rb4 {[%emt 0:00:59]} Kg7 {[%emt 0:04:31]} 30. h4 {[%emt 0:03:01]} h6 {[%emt 0:00:06]} 31. hxg5 {[%emt 0:03:29]} hxg5 {[%emt 0:00:08]} 32. Qb2 {[%emt 0:00:14]} Rc8 {[%emt 0:01:43]} 33. Qxf6+ {[%emt 0:00:50]} Kxf6 {[%emt 0:00:06]} 34. Rd2 {[%emt 0:00:15]} Kg6 {[%emt 0:07:31]} 35. Kg2 {[%emt 0:00:26]} Re5 {[%emt 0:02:44]} 36. Rbd4 {[%emt 0:02:27]} Kf5 {[%emt 0:04:06]} 37. Rd8 {[%emt 0:03:34]} Rc1 {[%emt 0:07:20]} 38. Rd1 {[%emt 0:00:46]} Rxd1 {[%emt 0:00:09]} 39. Rxd1 {[%emt 0:00:05]} Re2 {[%emt 0:00:04]} 40. Rd7 {[%emt 0:00:45]} f6 {[%emt 0:00:11]} 41. Re7 {[%emt 0:32:37]} Kg4 {[%emt 0:31:57]} 42. Ra7 {[%emt 0:02:24]} e5 {[%emt 0:01:18]} 43. Ra4+ {[%emt 0:04:57]} e4 {[%emt 0:00:26]} 44. Rb4 {[%emt 0:00:15]} f5 {[%emt 0:02:50]} 45. Ra4 {[%emt 0:00:12]} Rb2 {[%emt 0:01:23]} 46. Rc4 {[%emt 0:00:24]} Ra2 {[%emt 0:00:22]} 47. Rb4 {[%emt 0:00:06]} Rd2 {[%emt 0:00:09]} 48. Ra4 {[%emt 0:00:10]} Re2 {[%emt 0:00:07]} 49. Rb4 {[%emt 0:00:09]} Kh5 {[%emt 0:02:01]} 50. Rb5 {[%emt 0:01:01]} Kg4 {[%emt 0:00:11]} 51. Rb4 {[%emt 0:00:14]} 1/2-1/2

[Event "ESP-chT Div I 2018"]
[Site "Linares"]
[Date "2018.08.08"]
[Round "3"]
[White "Rubio Mejia, Luis Ignacio"]
[Black "Cramling, Pia"]
[Result "1/2-1/2"]
[ECO "E32"]
[WhiteElo "2442"]
[BlackElo "2453"]
[Annotator "ChessBase"]
[PlyCount "91"]
[EventDate "2018.08.06"]
[EventType "team-tourn"]
[EventCountry "ESP"]
[SourceTitle "playchess.com"]
[Source "ChessBase"]
[SourceQuality "1"]
[TimeControl "40/5400+30:1800+30"]

1. d4 {[%emt 0:00:00]} Nf6 {[%emt 0:00:00]} 2. c4 {[%emt 0:00:00]} e6 {[%emt 0:00:00]} 3. Nc3 {[%emt 0:00:23]} Bb4 {[%emt 0:00:00]} 4. Qc2 {[%emt 0:00:55]} d6 {[%emt 0:00:22]} 5. Bg5 {[%emt 0:01:59]} Nbd7 {[%emt 0:01:30]} 6. e3 {[%emt 0:05:18]} h6 {[%emt 0:11:36]} 7. Bh4 {[%emt 0:02:48]} b6 {[%emt 0:02:06]} 8. Bd3 {[%emt 0:11:43]} Bb7 {[%emt 0:02:21]} 9. f3 {[%emt 0:03:30]} c5 {[%emt 0:11:58]} 10. Nge2 {[%emt 0:03:49]} cxd4 {[%emt 0:02:25]} 11. exd4 {[%emt 0:01:12]} O-O {[%emt 0:04:36]} 12. a3 {[%emt 0:17:18]} Bxc3+ {[%emt 0:00:11]} 13. Nxc3 {[%emt 0:00:07]} Qc7 {[%emt 0:12:02]} 14. O-O {[%emt 0:10:18]} a6 {[%emt 0:00:31]} 15. Rac1 {[%emt 0:08:55]} Rac8 {[%emt 0:03:17]} 16. Rfe1 {[%emt 0:08:01]} Rfe8 {[%emt 0:01:05]} 17. Qd2 {[%emt 0:02:46]} Qb8 {[%emt 0:01:49]} 18. Bg3 {[%emt 0:04:30]} e5 {[%emt 0:13:32]} 19. dxe5 {[%emt 0:05:20]} Nxe5 {[%emt 0:04:28]} 20. b3 {[%emt 0:02:04]} Bc6 {[%emt 0:16:50]} 21. Bf5 {[%emt 0:04:01]} Bd7 {[%emt 0:00:13]} 22. Bxd7 {[%emt 0:03:13]} Nfxd7 {[%emt 0:00:05]} 23. Bxe5 {[%emt 0:01:23]} Nxe5 {[%emt 0:01:50]} 24. a4 {[%emt 0:00:54]} Nd7 {[%emt 0:03:12]} 25. Red1 {[%emt 0:01:20]} Re6 {[%emt 0:00:32]} 26. Ne2 {[%emt 0:00:26]} Nc5 {[%emt 0:01:50]} 27. Nd4 {[%emt 0:00:04]} Rf6 {[%emt 0:00:06]} 28. Re1 {[%emt 0:00:38]} Qc7 {[%emt 0:00:31]} 29. Re3 {[%emt 0:00:31]} Ne6 {[%emt 0:00:34]} 30. Rce1 {[%emt 0:00:43]} Nxd4 {[%emt 0:01:34]} 31. Qxd4 {[%emt 0:00:05]} Qc5 {[%emt 0:00:35]} 32. Rd1 {[%emt 0:01:03]} Kf8 {[%emt 0:01:27]} 33. Kf1 {[%emt 0:00:33]} Qxd4 {[%emt 0:00:55]} 34. Rxd4 {[%emt 0:00:07]} a5 {[%emt 0:00:07]} 35. Ke2 {[%emt 0:00:38]} Rc6 {[%emt 0:00:05]} 36. Rde4 {[%emt 0:00:33]} g5 {[%emt 0:01:03]} 37. Re8+ {[%emt 0:00:34]} Kg7 {[%emt 0:00:01]} 38. Kd3 {[%emt 0:00:43]} Rf5 {[%emt 0:02:55]} 39. Rd8 {[%emt 0:00:21]} Re5 {[%emt 0:00:33]} 40. Kd4 {[%emt 0:00:42]} Rf5 {[%emt 0:00:41]} 41. Ree8 {[%emt 0:30:27]} h5 {[%emt 0:30:09]} 42. Re4 {[%emt 0:00:31]} h4 {[%emt 0:00:26]} 43. h3 {[%emt 0:00:26]} Kf6 {[%emt 0:00:13]} 44. Rd7 {[%emt 0:00:35]} Kg7 {[%emt 0:00:56]} 45. Rd8 {[%emt 0:00:18]} Kf6 {[%emt 0:00:07]} 46. Rd7 {[%emt 0:00:17] Ke5+} 1/2-1/2

[Event "ESP-chT Div I 2018"]
[Site "Linares"]
[Date "2018.08.08"]
[Round "3"]
[White "Barbot, Pierre"]
[Black "Vergara Anton, Diego"]
[Result "1-0"]
[ECO "A05"]
[WhiteElo "2420"]
[BlackElo "2022"]
[Annotator "NA"]
[PlyCount "95"]
[EventDate "2018.08.06"]
[EventType "team-tourn"]
[EventCountry "ESP"]
[SourceTitle "playchess.com"]
[Source "ChessBase"]
[SourceQuality "1"]
[TimeControl "40/5400+30:1800+30"]

1. Nf3 {[%emt 0:00:00]} Nf6 {[%emt 0:00:00]} 2. c4 {[%emt 0:00:00]} g6 {[%emt 0:00:11]} 3. Nc3 {[%emt 0:00:00]} Bg7 {[%emt 0:00:12]} 4. e4 {[%emt 0:00:00]} O-O {[%emt 0:00:18]} 5. d4 {[%emt 0:00:01]} c6 {[%emt 0:00:53]} 6. e5 {[%emt 0:03:38]} Ne8 {[%emt 0:01:14]} 7. Bf4 {[%emt 0:00:07]} d6 {[%emt 0:00:19]} 8. h3 {[%emt 0:03:19]} Nd7 {[%emt 0:06:30]} 9. exd6 {[%emt 0:00:33]} Nxd6 {[%emt 0:00:20]} 10. Be2 {[%emt 0:02:20]} Nf6 {[%emt 0:01:34]} 11. O-O {[%emt 0:02:33]} Be6 {[%emt 0:04:40]} 12. d5 {[%emt 0:07:44]} cxd5 {[%emt 0:01:46]} 13. cxd5 {[%emt 0:00:04]} Bf5 {[%emt 0:03:58]} 14. Nd4 {[%emt 0:03:45]} Nfe4 {[%emt 0:15:47]} 15. Nxf5 {[%emt 0:01:31]} Nxc3 {[%emt 0:02:31]} 16. bxc3 {[%emt 0:02:45]} Nxf5 {[%emt 0:01:33]} 17. Qb3 {[%emt 0:01:08]} b6 {[%emt 0:05:04]} 18. Rac1 {[%emt 0:01:42]} Rc8 {[%emt 0:05:57]} 19. Bg4 {[%emt 0:00:05]} Rc5 {[%emt 0:01:40]} 20. Bxf5 {[%emt 0:03:23]} gxf5 {[%emt 0:00:58]} 21. c4 {[%emt 0:00:03]} b5 {[%emt 0:03:21]} 22. cxb5 {[%emt 0:02:52]} Rxd5 {[%emt 0:03:21]} 23. Rfd1 {[%emt 0:07:17]} Rxd1+ {[%emt 0:03:29]} 24. Rxd1 {[%emt 0:00:29]} Qa5 {[%emt 0:01:11]} 25. Bd2 {[%emt 0:00:18]} Qc7 {[%emt 0:03:12]} 26. Rc1 {[%emt 0:00:06]} Qd7 {[%emt 0:00:07]} 27. Be3 {[%emt 0:00:06]} e5 {[%emt 0:04:00]} 28. Rc6 {[%emt 0:06:00]} Rb8 {[%emt 0:02:37]} 29. Qc4 {[%emt 0:01:27]} e4 {[%emt 0:05:59]} 30. Bf4 {[%emt 0:01:31]} Qd1+ {[%emt 0:00:50]} 31. Kh2 {[%emt 0:01:22]} Rf8 {[%emt 0:01:32]} 32. Rc8 {[%emt 0:03:52]} Qd7 {[%emt 0:06:08]} 33. Rc7 {[%emt 0:03:28]} Qd4 {[%emt 0:00:35]} 34. Be3 {[%emt 0:00:18]} Be5+ {[%emt 0:03:43]} 35. g3 {[%emt 0:00:01]} Qd6 {[%emt 0:02:00]} 36. Rc8 {[%emt 0:00:45]} Qf6 {[%emt 0:03:29]} 37. Bxa7 {[%emt 0:04:57]} Rxc8 {[%emt 0:02:34]} 38. Qxc8+ {[%emt 0:00:07]} Kg7 {[%emt 0:00:02]} 39. Be3 {[%emt 0:00:18]} h5 {[%emt 0:03:06]} 40. Qc6 {[%emt 0:02:45]} Bd6 {[%emt 0:01:01]} 41. Kg2 {[%emt 0:31:39]} Qe7 {[%emt 0:31:12]} 42. b6 {[%emt 0:01:17]} f4 {[%emt 0:00:08]} 43. gxf4 {[%emt 0:01:06]} Qf6 {[%emt 0:00:57]} 44. b7 {[%emt 0:00:14]} Qg6+ {[%emt 0:00:06]} 45. Kh1 {[%emt 0:00:06]} Qe6 {[%emt 0:00:26]} 46. Bd4+ {[%emt 0:04:00]} Kh7 {[%emt 0:00:50]} 47. Qc8 {[%emt 0:00:05]} Qxa2 {[%emt 0:00:39]} 48. Qh8+ {[%emt 0:00:06]} 1-0

[Event "ESP-chT Div I 2018"]
[Site "Linares"]
[Date "2018.08.08"]
[Round "3"]
[White "Martin Fuentes, Alberto"]
[Black "Alonso Moyano, Jonathan"]
[Result "1-0"]
[ECO "B25"]
[WhiteElo "2391"]
[BlackElo "2388"]
[Annotator "NA"]
[PlyCount "83"]
[EventDate "2018.08.06"]
[EventType "team-tourn"]
[EventCountry "ESP"]
[SourceTitle "playchess.com"]
[Source "ChessBase"]
[SourceQuality "1"]
[TimeControl "40/5400+30:1800+30"]

1. e4 {[%emt 0:00:26]} c5 {[%emt 0:00:00]} 2. Nc3 {[%emt 0:00:06]} Nc6 {[%emt 0:00:00]} 3. g3 {[%emt 0:00:16]} g6 {[%emt 0:00:00]} 4. Bg2 {[%emt 0:00:07]} Bg7 {[%emt 0:00:08]} 5. d3 {[%emt 0:00:03]} d6 {[%emt 0:00:08]} 6. f4 {[%emt 0:00:05]} e5 {[%emt 0:04:56]} 7. Nh3 {[%emt 0:01:37]} Nge7 {[%emt 0:00:39]} 8. O-O {[%emt 0:01:16]} O-O {[%emt 0:00:17]} 9. f5 {[%emt 0:11:09]} f6 {[%emt 0:24:58]} 10. g4 {[%emt 0:00:14]} Nd4 {[%emt 0:00:08]} 11. Be3 {[%emt 0:06:18]} Rb8 {[%emt 0:09:47]} 12. Qd2 {[%emt 0:10:45]} b5 {[%emt 0:05:08]} 13. Nd1 {[%emt 0:02:37]} b4 {[%emt 0:01:24]} 14. c3 {[%emt 0:01:06]} bxc3 {[%emt 0:00:31]} 15. bxc3 {[%emt 0:00:06]} Nb5 {[%emt 0:00:44]} 16. a4 {[%emt 0:01:30]} Nc7 {[%emt 0:00:15]} 17. Kh1 {[%emt 0:03:44]} Na6 {[%emt 0:08:52]} 18. d4 {[%emt 0:10:53]} cxd4 {[%emt 0:03:42]} 19. cxd4 {[%emt 0:00:32]} Nb4 {[%emt 0:00:05]} 20. dxe5 {[%emt 0:02:20]} dxe5 {[%emt 0:00:18]} 21. Qxd8 {[%emt 0:00:25]} Rxd8 {[%emt 0:00:05]} 22. Bxa7 {[%emt 0:00:11]} Rb7 {[%emt 0:07:14]} 23. Bc5 {[%emt 0:04:02]} Nec6 {[%emt 0:00:06]} 24. a5 {[%emt 0:05:24]} g5 {[%emt 0:01:35]} 25. Nc3 {[%emt 0:02:10]} Bf8 {[%emt 0:01:02]} 26. Bb6 {[%emt 0:09:33]} Rd2 {[%emt 0:04:56]} 27. Nd5 {[%emt 0:08:11]} Rf7 {[%emt 0:00:10]} 28. Rf2 {[%emt 0:00:56]} Rxf2 {[%emt 0:02:21]} 29. Nxf2 {[%emt 0:00:45]} Nxd5 {[%emt 0:00:05]} 30. exd5 {[%emt 0:00:06]} Nb4 {[%emt 0:00:02]} 31. Ne4 {[%emt 0:02:33]} Bb7 {[%emt 0:14:30]} 32. d6 {[%emt 0:01:41]} Kg7 {[%emt 0:00:26]} 33. Ra4 {[%emt 0:05:22]} Nd5 {[%emt 0:03:26]} 34. Nc5 {[%emt 0:03:11]} Bc6 {[%emt 0:01:07]} 35. Ne6+ {[%emt 0:01:10]} Kg8 {[%emt 0:00:37]} 36. Rc4 {[%emt 0:00:12]} Bb7 {[%emt 0:01:31]} 37. Nxf8 {[%emt 0:03:24]} Kxf8 {[%emt 0:02:32]} 38. Rc5 {[%emt 0:00:22]} e4 {[%emt 0:04:17]} 39. Bxe4 {[%emt 0:00:46]} Nxb6 {[%emt 0:00:39]} 40. Bxb7 {[%emt 0:00:05]} Rxb7 {[%emt 0:00:19]} 41. axb6 {[%emt 0:31:16]} Rb8 {[%emt 0:30:02]} 42. d7 {[%emt 0:00:43]} 1-0

[Event "ESP-chT Div I 2018"]
[Site "Linares"]
[Date "2018.08.08"]
[Round "3"]
[White "Shvayger, Yuliya"]
[Black "Martin Duque, Jesus"]
[Result "1/2-1/2"]
[ECO "C17"]
[WhiteElo "2390"]
[BlackElo "2378"]
[Annotator "NA"]
[PlyCount "130"]
[EventDate "2018.08.06"]
[EventType "team-tourn"]
[EventCountry "ESP"]
[SourceTitle "playchess.com"]
[Source "ChessBase"]
[SourceQuality "1"]
[TimeControl "40/5400+30:1800+30"]

1. e4 {[%emt 0:00:00]} e6 {[%emt 0:00:00]} 2. d4 {[%emt 0:00:00]} d5 {[%emt 0:00:00]} 3. Nc3 {[%emt 0:00:21]} Bb4 {[%emt 0:00:00]} 4. e5 {[%emt 0:00:49]} c5 {[%emt 0:00:00]} 5. a3 {[%emt 0:00:07]} Ba5 {[%emt 0:00:00]} 6. b4 {[%emt 0:02:13]} cxd4 {[%emt 0:00:00]} 7. Nb5 {[%emt 0:00:21]} Bc7 {[%emt 0:00:05]} 8. Nf3 {[%emt 0:01:24]} Nc6 {[%emt 0:02:06]} 9. Bf4 {[%emt 0:05:20]} Nge7 {[%emt 0:01:28]} 10. Bd3 {[%emt 0:00:09]} a6 {[%emt 0:01:59]} 11. Nbxd4 {[%emt 0:09:10]} Nxd4 {[%emt 0:02:42]} 12. Nxd4 {[%emt 0:00:03]} Ng6 {[%emt 0:00:07]} 13. Bxg6 {[%emt 0:00:44]} fxg6 {[%emt 0:00:02]} 14. O-O {[%emt 0:08:28]} O-O {[%emt 0:00:06]} 15. Qd2 {[%emt 0:00:26]} Bd7 {[%emt 0:01:36]} 16. Rac1 {[%emt 0:15:15]} Qe7 {[%emt 0:03:59]} 17. Bg5 {[%emt 0:03:17]} Qf7 {[%emt 0:00:43]} 18. f4 {[%emt 0:00:13]} Bb6 {[%emt 0:01:06]} 19. c3 {[%emt 0:01:55]} Rac8 {[%emt 0:02:26]} 20. Rf3 {[%emt 0:02:38]} Rc4 {[%emt 0:00:31]} 21. Bh4 {[%emt 0:06:37]} Bxd4+ {[%emt 0:06:06]} 22. cxd4 {[%emt 0:00:15]} Rxc1+ {[%emt 0:00:05]} 23. Qxc1 {[%emt 0:00:08]} Rc8 {[%emt 0:00:03]} 24. Rc3 {[%emt 0:06:11]} Rxc3 {[%emt 0:01:56]} 25. Qxc3 {[%emt 0:00:02]} Qxf4 {[%emt 0:00:46]} 26. Bf2 {[%emt 0:00:08]} h6 {[%emt 0:05:10]} 27. h3 {[%emt 0:02:20]} Kh7 {[%emt 0:01:43]} 28. Qc2 {[%emt 0:00:20]} Qf5 {[%emt 0:03:14]} 29. Qc7 {[%emt 0:14:26]} Bc6 {[%emt 0:00:29]} 30. Qe7 {[%emt 0:00:30]} g5 {[%emt 0:00:50]} 31. Qd6 {[%emt 0:04:08]} Bb5 {[%emt 0:05:49]} 32. Qc7 {[%emt 0:03:21]} Bd3 {[%emt 0:01:35]} 33. Qc3 {[%emt 0:02:56]} Qe4 {[%emt 0:00:04]} 34. Qe1 {[%emt 0:00:54]} Be2 {[%emt 0:00:09]} 35. Qc1 {[%emt 0:01:31]} Bc4 {[%emt 0:01:54]} 36. a4 {[%emt 0:00:47]} Qd3 {[%emt 0:01:54]} 37. a5 {[%emt 0:00:29]} Kg8 {[%emt 0:00:59]} 38. Be3 {[%emt 0:00:28]} Kf7 {[%emt 0:01:00]} 39. Qd2 {[%emt 0:00:23]} Ke8 {[%emt 0:03:05]} 40. Qxd3 {[%emt 0:01:51]} Bxd3 {[%emt 0:00:02]} 41. Kf2 {[%emt 0:31:34]} Kd7 {[%emt 0:30:05]} 42. g3 {[%emt 0:04:12]} Kc6 {[%emt 0:00:00]} 43. h4 {[%emt 0:01:54]} gxh4 {[%emt 0:00:06]} 44. gxh4 {[%emt 0:00:03]} Kb5 {[%emt 0:00:04]} 45. Bd2 {[%emt 0:00:07]} Kc4 {[%emt 0:00:08]} 46. Ke3 {[%emt 0:00:08]} g5 {[%emt 0:00:24]} 47. hxg5 {[%emt 0:00:10]} hxg5 {[%emt 0:00:01]} 48. Be1 {[%emt 0:00:59]} Be4 {[%emt 0:00:32]} 49. Bd2 {[%emt 0:00:02]} g4 {[%emt 0:00:12]} 50. Be1 {[%emt 0:00:14]} Bf5 {[%emt 0:00:13]} 51. Bh4 {[%emt 0:00:56]} Kxb4 {[%emt 0:00:11]} 52. Bd8 {[%emt 0:00:05]} Kc3 {[%emt 0:03:53]} 53. Bb6 {[%emt 0:00:23]} Kc2 {[%emt 0:00:05]} 54. Kf4 {[%emt 0:00:20]} Kd3 {[%emt 0:01:15]} 55. Kg3 {[%emt 0:00:09]} Kc4 {[%emt 0:00:17]} 56. Kf4 {[%emt 0:00:11]} Kb5 {[%emt 0:00:04]} 57. Kg3 {[%emt 0:00:07]} Kc6 {[%emt 0:00:06]} 58. Kf4 {[%emt 0:00:05]} Kd7 {[%emt 0:00:12]} 59. Kg3 {[%emt 0:00:08]} Ke8 {[%emt 0:00:08]} 60. Kf4 {[%emt 0:00:13]} Kf7 {[%emt 0:00:44]} 61. Kg3 {[%emt 0:00:09]} Kg7 {[%emt 0:00:10]} 62. Kh4 {[%emt 0:00:09]} Kh6 {[%emt 0:01:22]} 63. Bc5 {[%emt 0:00:08]} Kg7 {[%emt 0:01:38]} 64. Bb6 {[%emt 0:00:10]} Kh6 {[%emt 0:00:01]} 65. Bc5 {[%emt 0:00:09]} Kg7 {[%emt 0:00:05]} 1/2-1/2

[Event "ESP-chT Div I 2018"]
[Site "Linares"]
[Date "2018.08.08"]
[Round "3"]
[White "Bergez, Luc"]
[Black "Rodriguez Fontecha, Marcos"]
[Result "1-0"]
[ECO "C00"]
[WhiteElo "2327"]
[BlackElo "2329"]
[Annotator "NA"]
[PlyCount "71"]
[EventDate "2018.08.06"]
[EventType "team-tourn"]
[EventCountry "ESP"]
[SourceTitle "playchess.com"]
[Source "ChessBase"]
[SourceQuality "1"]
[TimeControl "40/5400+30:1800+30"]

1. e4 {[%emt 0:00:00]} e6 {[%emt 0:00:00]} 2. b3 {[%emt 0:00:00]} d5 {[%emt 0:01:04]} 3. Bb2 {[%emt 0:00:00]} Nf6 {[%emt 0:00:29]} 4. e5 {[%emt 0:00:00]} Ng8 {[%emt 0:01:38]} 5. d4 {[%emt 0:01:19]} c5 {[%emt 0:01:32]} 6. c3 {[%emt 0:03:47]} Nc6 {[%emt 0:01:41]} 7. Nf3 {[%emt 0:00:52]} f6 {[%emt 0:06:14]} 8. Bd3 {[%emt 0:07:21]} fxe5 {[%emt 0:06:11]} 9. dxe5 {[%emt 0:00:21]} Nh6 {[%emt 0:00:14]} 10. O-O {[%emt 0:00:35]} Nf7 {[%emt 0:00:36]} 11. c4 {[%emt 0:20:03]} d4 {[%emt 0:03:55]} 12. Re1 {[%emt 0:03:23]} Qc7 {[%emt 0:03:06]} 13. Bc1 {[%emt 0:04:44]} Be7 {[%emt 0:05:22]} 14. Bf4 {[%emt 0:00:42]} b6 {[%emt 0:03:44]} 15. Bg3 {[%emt 0:01:47]} Bb7 {[%emt 0:00:54]} 16. Nbd2 {[%emt 0:00:58]} O-O-O {[%emt 0:03:05]} 17. Qb1 {[%emt 0:00:19]} Nb4 {[%emt 0:16:30]} 18. Bf5 {[%emt 0:08:40]} Qd7 {[%emt 0:21:55]} 19. a3 {[%emt 0:00:54]} Nc6 {[%emt 0:00:19]} 20. Bxh7 {[%emt 0:01:08]} g5 {[%emt 0:07:31]} 21. h3 {[%emt 0:10:43]} g4 {[%emt 0:03:20]} 22. hxg4 {[%emt 0:00:25]} d3 {[%emt 0:02:51]} 23. Bg6 {[%emt 0:04:17]} Nd4 {[%emt 0:02:09]} 24. Bxf7 {[%emt 0:05:12]} Ne2+ {[%emt 0:03:13]} 25. Rxe2 {[%emt 0:00:04]} dxe2 {[%emt 0:00:03]} 26. Qg6 {[%emt 0:02:57]} Kb8 {[%emt 0:01:16]} 27. Re1 {[%emt 0:02:13]} Bf8 {[%emt 0:01:57]} 28. Bxe6 {[%emt 0:07:44]} Qc6 {[%emt 0:02:00]} 29. Bf5 {[%emt 0:03:47]} Qxg6 {[%emt 0:00:55]} 30. Bxg6 {[%emt 0:00:44]} Rh6 {[%emt 0:00:15]} 31. Bc2 {[%emt 0:01:49]} Be7 {[%emt 0:00:22]} 32. Rxe2 {[%emt 0:01:02]} Rdh8 {[%emt 0:00:10]} 33. Nh2 {[%emt 0:00:13]} Bh4 {[%emt 0:00:53]} 34. Bf4 {[%emt 0:01:41]} Bg5 {[%emt 0:00:10]} 35. Bxg5 {[%emt 0:00:09]} Rxh2 {[%emt 0:00:10]} 36. f3 {[%emt 0:00:16]} 1-0

[Event "ESP-chT Div I 2018"]
[Site "Linares"]
[Date "2018.08.08"]
[Round "3"]
[White "Alonso Alvarez, Aitor"]
[Black "Pap, Misa"]
[Result "0-1"]
[ECO "A80"]
[WhiteElo "2306"]
[BlackElo "2478"]
[Annotator "RC"]
[PlyCount "62"]
[EventDate "2018.08.06"]
[EventType "team-tourn"]
[EventCountry "ESP"]
[SourceTitle "playchess.com"]
[Source "ChessBase"]
[SourceQuality "1"]
[TimeControl "40/5400+30:1800+30"]

1. d4 {[%emt 0:00:00]} f5 {[%emt 0:00:22]} 2. Nc3 {[%emt 0:00:11]} Nf6 {[%emt 0:00:10]} 3. Bg5 {[%emt 0:00:08]} d5 {[%emt 0:00:08]} 4. Bxf6 {[%emt 0:00:10]} exf6 {[%emt 0:00:12]} 5. e3 {[%emt 0:00:14]} Be6 {[%emt 0:01:11]} 6. Bd3 {[%emt 0:00:15]} Nc6 {[%emt 0:00:12]} 7. a3 {[%emt 0:00:27]} Qd7 {[%emt 0:01:28]} 8. Qf3 {[%emt 0:08:34]} O-O-O {[%emt 0:00:35]} 9. Nge2 {[%emt 0:00:12]} g5 {[%emt 0:05:23]} 10. g3 {[%emt 0:11:23]} Kb8 {[%emt 0:02:17]} 11. O-O-O {[%emt 0:12:56]} Ne7 {[%emt 0:04:29]} 12. h4 {[%emt 0:01:51]} Nc8 {[%emt 0:19:16]} 13. Kb1 {[%emt 0:13:03]} h6 {[%emt 0:04:28]} 14. Qg2 {[%emt 0:07:08]} c6 {[%emt 0:02:47]} 15. Nc1 {[%emt 0:01:15]} Nd6 {[%emt 0:00:57]} 16. Nb3 {[%emt 0:03:11]} b6 {[%emt 0:06:16]} 17. f3 {[%emt 0:09:09]} Bg7 {[%emt 0:01:33]} 18. Nd2 {[%emt 0:03:09]} Rhe8 {[%emt 0:07:19]} 19. Rde1 {[%emt 0:08:55]} Nc4 {[%emt 0:13:33]} 20. Nd1 {[%emt 0:01:00]} Bf7 {[%emt 0:03:56]} 21. c3 {[%emt 0:01:20]} Nd6 {[%emt 0:00:06]} 22. Bc2 {[%emt 0:02:34]} Re7 {[%emt 0:01:32]} 23. e4 {[%emt 0:01:25]} fxe4 {[%emt 0:02:38]} 24. fxe4 {[%emt 0:00:02]} dxe4 {[%emt 0:02:17]} 25. Nxe4 {[%emt 0:01:30]} Bd5 {[%emt 0:00:28]} 26. g4 {[%emt 0:02:32]} Rde8 {[%emt 0:01:13]} 27. Ndf2 {[%emt 0:00:02]} f5 {[%emt 0:10:12]} 28. gxf5 {[%emt 0:00:33]} Qxf5 {[%emt 0:00:17]} 29. Qg3 {[%emt 0:05:31]} Qf4 {[%emt 0:00:13]} 30. Qxf4 {[%emt 0:00:06]} gxf4 {[%emt 0:00:03]} 31. Rhg1 {[%emt 0:00:10]} Bf8 {[%emt 0:00:39]} 0-1

[Event "ESP-chT Div I 2018"]
[Site "Linares"]
[Date "2018.08.08"]
[Round "3"]
[White "Gutierrez Olivares, Daniel"]
[Black "Gonzalez Guedes, Iyan"]
[Result "1-0"]
[ECO "E81"]
[WhiteElo "2297"]
[BlackElo "1925"]
[Annotator "NA"]
[PlyCount "67"]
[EventDate "2018.08.06"]
[EventType "team-tourn"]
[EventCountry "ESP"]
[SourceTitle "playchess.com"]
[Source "ChessBase"]
[SourceQuality "1"]
[TimeControl "40/5400+30:1800+30"]

1. c4 {[%emt 0:00:00]} Nf6 {[%emt 0:00:00]} 2. Nc3 {[%emt 0:00:00]} g6 {[%emt 0:00:01]} 3. e4 {[%emt 0:00:05]} d6 {[%emt 0:00:10]} 4. d4 {[%emt 0:00:12]} Bg7 {[%emt 0:00:05]} 5. f3 {[%emt 0:00:19]} O-O {[%emt 0:00:10]} 6. Be3 {[%emt 0:01:11]} c5 {[%emt 0:00:18]} 7. d5 {[%emt 0:00:41]} e6 {[%emt 0:00:16]} 8. Qd2 {[%emt 0:00:36]} exd5 {[%emt 0:00:31]} 9. cxd5 {[%emt 0:00:10]} Nbd7 {[%emt 0:01:13]} 10. Nh3 {[%emt 0:01:34]} a6 {[%emt 0:01:00]} 11. a4 {[%emt 0:00:16]} Ne5 {[%emt 0:02:51]} 12. Nf2 {[%emt 0:00:16]} Re8 {[%emt 0:02:28]} 13. Be2 {[%emt 0:01:05]} h5 {[%emt 0:05:05]} 14. O-O {[%emt 0:01:16]} Nh7 {[%emt 0:07:51]} 15. h3 {[%emt 0:07:25]} Rb8 {[%emt 0:13:30]} 16. f4 {[%emt 0:05:11]} Nd7 {[%emt 0:00:15]} 17. Bd3 {[%emt 0:15:49]} Qc7 {[%emt 0:10:50]} 18. e5 {[%emt 0:02:52]} dxe5 {[%emt 0:02:30]} 19. f5 {[%emt 0:01:20]} e4 {[%emt 0:20:37]} 20. fxg6 {[%emt 0:02:43]} exd3 {[%emt 0:02:14]} 21. gxh7+ {[%emt 0:00:52]} Kh8 {[%emt 0:00:11]} 22. Bf4 {[%emt 0:01:16]} Ne5 {[%emt 0:03:30]} 23. Nxd3 {[%emt 0:01:04]} Qb6 {[%emt 0:06:13]} 24. Nxe5 {[%emt 0:07:20]} Bxe5 {[%emt 0:00:15]} 25. Bxe5+ {[%emt 0:00:12]} Rxe5 {[%emt 0:00:15]} 26. Qf4 {[%emt 0:04:22]} f6 {[%emt 0:03:47]} 27. a5 {[%emt 0:00:31]} Qd6 {[%emt 0:02:14]} 28. Ne4 {[%emt 0:07:02]} Qxd5 {[%emt 0:03:03]} 29. Qxf6+ {[%emt 0:02:26]} Kxh7 {[%emt 0:00:05]} 30. Qf8 {[%emt 0:00:43]} Be6 {[%emt 0:05:55]} 31. Nf6+ {[%emt 0:05:18]} Kg6 {[%emt 0:00:05]} 32. Qxb8 {[%emt 0:00:43]} Qd4+ {[%emt 0:00:36]} 33. Kh1 {[%emt 0:00:44]} Rg5 {[%emt 0:01:04]} 34. Qe8+ {[%emt 0:04:31]} 1-0